fUSD/lending_fUSD_20240617
["ID","MTS","AMOUNT","RATE_DAILY","PERIOD"]
[329713889,1718597439848,-911.21,0.0002192,2]
[329713890,1718597439866,-911.21,0.0002192,2]
[329713891,1718597439877,-716.88484859,0.0002192,2]
[329713892,1718597439892,-194.32515141,0.0002192,2]
[329713893,1718597439904,-318.39,0.00021948,2]
[329713895,1718597439917,-1054.40178699,0.00021984,2]
[329713896,1718597439928,-791.75453443,0.00022,2]
[329713897,1718597439942,-3281.65459079,0.00022959,2]
[329713898,1718597439955,-679.27080803,0.00022959,2]
[329713899,1718597439984,-11343.97271385,0.00022959,2]
[329713900,1718597439999,-525.41710089,0.00022959,2]
[329713901,1718597440060,-6278.68478644,0.00022959,2]
[329713902,1718597440086,-1300.0,0.00023,2]
[329713903,1718597440158,-12737.47719277,0.00023,2]
[329713904,1718597440171,-1613.0,0.00023407,2]
[329713905,1718597440197,-15546.80851573,0.000236,2]
[329713906,1718597440208,-1054.40178699,0.00023755,2]
[329713907,1718597440227,-1000.0,0.00023763,2]
[329713908,1718597440242,-10000.0,0.00023981,2]
[329713910,1718597440263,-443.54047605,0.00024,3]
[329713913,1718597440279,-2059.87583728,0.000241,2]
[329713916,1718597440320,-318.39,0.00024212,2]
[329713918,1718597440332,-180.0,0.0002423,2]
[329713921,1718597440353,-509.58,0.00024384,2]
[329713923,1718597440366,-309.44,0.00024384,2]
[329713925,1718597440393,-170.14,0.00024384,2]
[329713927,1718597440442,-293.278,0.00024422,2]
[329713929,1718597440454,-5852.991,0.00024422,2]
[329713930,1718597440468,-38103.0,0.00024422,2]
[329713932,1718597440491,-5186.575,0.00024422,2]
[329713934,1718597440527,-330.94,0.00024563,2]
[329713937,1718597440541,-709.40489793,0.000247,2]
[329713939,1718597440557,-151.0,0.00024728,4]
[329713940,1718597440568,-23236.15825135,0.00024798,2]
[329713942,1718597440582,-23236.15825135,0.00024798,2]
[329713944,1718597440593,-23236.15825135,0.00024798,2]
[329713945,1718597440624,-23236.15825135,0.00024798,2]
[329713946,1718597440652,-23236.15825135,0.00024798,2]
[329713947,1718597440675,-23236.15825135,0.00024798,2]
[329713948,1718597440691,-23236.15825135,0.00024798,2]
[329713949,1718597440728,-23236.15825135,0.00024798,2]
[329713950,1718597440793,-214.6338668,0.00024798,2]
[329713951,1718597440804,-4723.91326165,0.00024799,2]
[329713952,1718597440874,-4723.91326157,0.00024799,2]
[329713953,1718597440905,-4723.91326157,0.00024799,2]
[329713954,1718597440943,-4723.91326157,0.00024799,2]
[329713955,1718597440958,-4723.91326157,0.00024799,2]
[329713956,1718597440975,-4723.91326157,0.00024799,2]
[329713957,1718597440986,-4723.91326157,0.00024799,2]
[329713958,1718597440996,-4723.91326157,0.00024799,2]
[329713959,1718597441008,-6807.09530734,0.000249,2]
[329713960,1718597441019,-1250.0,0.000249,2]
[329713961,1718597441050,-176.77024666,0.000249,2]
[329713962,1718597441087,-155.0,0.00025,2]
[329713963,1718597441112,-931.52591987,0.00025,2]
[329713964,1718597441123,-833.94032104,0.00025,2]
[329713965,1718597441137,-169.70855438,0.00025,2]
[329713966,1718597441151,-1207.95489704,0.00025,2]
[329713967,1718597441177,-157.63149575,0.00025,2]
[329713968,1718597441192,-155.0,0.00025,2]
[329713969,1718597441204,-159.31196262,0.00025,2]
[329713970,1718597441217,-225.51466571,0.00025,2]
[329713971,1718597441228,-14488.05698351,0.00025,2]
[329713972,1718597441245,-326.46650674,0.00025,2]
[329713973,1718597441260,-1350.0,0.00025,2]
[329713974,1718597441284,-1278.71461203,0.00025,2]
[329713975,1718597441296,-707.49477052,0.00025,2]
[329713976,1718597441309,-641.90219,0.00025,2]
[329713977,1718597441329,-1000.0,0.00025205,2]
[329713978,1718597441340,-151.0,0.00025235,7]
[329713979,1718597441370,-179.172478,0.00025235,7]
[329713980,1718597441399,-179.172478,0.00025235,7]
[329713981,1718597441440,-151.0,0.00025235,7]
[329713982,1718597441468,-151.0,0.00025235,7]
[329713983,1718597441479,-151.0,0.00025235,7]
[329713984,1718597441490,-430.760245,0.00025235,7]
[329713985,1718597441512,-151.0,0.00025235,7]
[329713986,1718597441523,-430.760245,0.00025235,7]
[329713987,1718597441554,-151.0,0.00025235,4]
[329713988,1718597441565,-1637.64914233,0.00025322,2]
[329713989,1718597441578,-213.0,0.00025322,2]
[329713990,1718597441592,-265.0,0.00025322,2]
[329713991,1718597441606,-162.0,0.00025322,2]
[329713992,1718597441619,-255.042,0.00025322,2]
[329713993,1718597441646,-162.423,0.00025322,2]
[329713994,1718597441666,-226.077,0.00025322,2]
[329713995,1718597441680,-278.081,0.00025322,2]
[329713996,1718597441705,-152.729,0.00025322,2]
[329713997,1718597441719,-195.604,0.00025322,2]
[329713998,1718597441732,-260.079,0.00025322,2]
[329713999,1718597441743,-158.818,0.00025322,2]
[329714000,1718597441756,-237.17,0.00025322,2]
[329714001,1718597441768,-226.311,0.00025322,2]
[329714002,1718597441785,-182.936,0.00025322,2]
[329714003,1718597441808,-1276.49,0.00025322,2]
[329714004,1718597441830,-1831.0,0.00025322,2]
[329714005,1718597441867,-168.231,0.00025322,2]
[329714006,1718597441881,-448.482,0.00025322,2]
[329714007,1718597441897,-873.382,0.00025322,2]
[329714008,1718597441908,-622.418,0.00025322,2]
[329714009,1718597441919,-1659.842,0.00025322,2]
[329714010,1718597441945,-449.101,0.00025322,2]
[329714011,1718597441957,-1331.823,0.00025322,2]
[329714012,1718597441969,-2454.301,0.00025322,2]
[329714013,1718597441980,-152.795,0.00025322,2]
[329714014,1718597441993,-2010.688,0.00025322,2]
[329714016,1718597442013,-548.47,0.00025322,2]
[329714017,1718597442024,-3210.875,0.00025322,2]
[329714018,1718597442036,-151.0,0.00025322,7]
[329714019,1718597442056,-151.0,0.00025322,7]
[329714020,1718597442080,-151.0,0.00025322,7]
[329714021,1718597442093,-155.440135,0.00025322,7]
[329714022,1718597442108,-151.0,0.00025322,7]
[329714023,1718597442119,-746.165889,0.00025322,7]
[329714024,1718597442153,-151.0,0.00025322,7]
[329714025,1718597442170,-746.165889,0.00025322,7]
[329714026,1718597442186,-151.0,0.00025322,7]
[329714027,1718597442200,-151.0,0.00025322,7]
[329714028,1718597442213,-151.0,0.00025322,7]
[329714029,1718597442224,-885.802782,0.00025322,7]
[329714030,1718597442236,-885.802782,0.00025322,7]
[329714031,1718597442257,-572.643686,0.00025564,2]
[329714032,1718597442270,-180.233809,0.00025564,2]
[329714034,1718597442288,-183.374436,0.00025564,2]
[329714035,1718597442306,-179.44022,0.00025564,2]
[329714036,1718597442325,-179.564168,0.00025564,2]
[329714037,1718597442340,-863.027366,0.00025564,2]
[329714038,1718597442361,-1678.666419,0.00025564,2]
[329714039,1718597442383,-576.880696,0.00025564,2]
[329714040,1718597442398,-559.555473,0.00025564,2]
[329714041,1718597442432,-151.0,0.00025564,7]
[329714042,1718597442502,-151.0,0.00025564,7]
[329714043,1718597442545,-151.0,0.00025564,7]
[329714044,1718597442557,-151.0,0.00025564,7]
[329714045,1718597442581,-151.0,0.00025564,7]
[329714046,1718597442599,-151.0,0.00025564,7]
[329714047,1718597442612,-151.0,0.00025564,7]
[329714048,1718597442636,-151.0,0.00025581,4]
[329714049,1718597442648,-852.03,0.00025589,2]
[329714050,1718597442665,-418.01,0.00025589,2]
[329714051,1718597442677,-418.01,0.00025589,2]
[329714052,1718597442690,-852.03,0.00025589,2]
[329714053,1718597442707,-418.01,0.00025589,2]
[329714054,1718597442723,-852.03,0.00025589,2]
[329714055,1718597442734,-852.03,0.00025589,2]
[329714056,1718597442757,-418.01,0.00025589,2]
[329714057,1718597442768,-418.01,0.00025589,2]
[329714058,1718597442779,-314.86,0.00025589,2]
[329714059,1718597442790,-418.01,0.00025589,2]
[329714060,1718597442803,-852.03,0.00025589,2]
[329714061,1718597442816,-418.01,0.00025589,2]
[329714062,1718597442828,-852.03,0.00025589,2]
[329714063,1718597442860,-852.03,0.00025589,2]
[329714064,1718597442874,-418.01,0.00025589,2]
[329714065,1718597442918,-2258.0,0.0002562,2]
[329714066,1718597442947,-151.0,0.00025742,4]
[329714067,1718597442977,-151.0,0.00025863,2]
[329714068,1718597442989,-546.39,0.00025863,2]
[329714069,1718597443020,-429.5,0.00025863,2]
[329714070,1718597443039,-171.3,0.00025863,2]
[329714071,1718597443057,-236.25,0.00025863,2]
[329714072,1718597443069,-153.2,0.00025863,2]
[329714073,1718597443086,-301.65,0.00025863,2]
[329714074,1718597443099,-429.84,0.00025863,2]
[329714075,1718597443121,-817.76,0.00025863,2]
[329714076,1718597443132,-150.0,0.00025863,2]
[329714077,1718597443155,-288.53,0.00025863,2]
[329714078,1718597443173,-527.15,0.00025863,2]
[329714080,1718597443193,-300.0,0.00025863,2]
[329714082,1718597443221,-150.0,0.00025863,2]
[329714085,1718597443244,-150.0,0.00025863,2]
[329714087,1718597443257,-150.0,0.00025863,2]
[329714089,1718597443290,-150.0,0.00025863,2]
[329714091,1718597443318,-164.44,0.00025863,2]
[329714092,1718597443328,-353.95,0.00025863,2]
[329714094,1718597443341,-305.32,0.00025863,2]
[329714096,1718597443351,-150.0,0.00025863,2]
[329714098,1718597443368,-423.27,0.00025863,2]
[329714100,1718597443390,-150.0,0.00025863,2]
[329714103,1718597443428,-150.0,0.00025863,2]
[329714105,1718597443446,-423.27,0.00025863,2]
[329714107,1718597443465,-527.15,0.00025863,2]
[329714111,1718597443499,-150.0,0.00025863,2]
[329714113,1718597443536,-164.44,0.00025863,2]
[329714114,1718597443590,-353.95,0.00025863,2]
[329714115,1718597443626,-150.0,0.00025863,2]
[329714116,1718597443638,-150.0,0.00025863,2]
[329714117,1718597443656,-150.0,0.00025863,2]
[329714118,1718597443755,-150.0,0.00025863,2]
[329714119,1718597443780,-423.27,0.00025863,2]
[329714120,1718597443791,-527.15,0.00025863,2]
[329714121,1718597443802,-150.0,0.00025863,2]
[329714122,1718597443815,-150.0,0.00025863,2]
[329714123,1718597443826,-164.44,0.00025863,2]
[329714124,1718597443842,-353.95,0.00025863,2]
[329714125,1718597443855,-150.0,0.00025863,2]
[329714126,1718597443868,-150.0,0.00025863,2]
[329714127,1718597443880,-150.0,0.00025863,2]
[329714128,1718597443890,-164.44,0.00025863,2]
[329714129,1718597443901,-150.0,0.00025863,2]
[329714130,1718597443922,-423.27,0.00025863,2]
[329714132,1718597443941,-150.0,0.00025863,2]
[329714133,1718597443952,-527.15,0.00025863,2]
[329714134,1718597443969,-353.95,0.00025863,2]
[329714135,1718597443985,-572.643686,0.00025883,2]
[329714136,1718597444004,-863.027366,0.00025883,2]
[329714137,1718597444016,-1678.666419,0.00025883,2]
[329714138,1718597444030,-576.880696,0.00025883,2]
[329714139,1718597444044,-559.555473,0.00025883,2]
[329714140,1718597444059,-183.47,0.0002589,2]
[329714141,1718597444079,-150.0,0.00025955,2]
[329714142,1718597444095,-179.44022,0.0002599,2]
[329714143,1718597444106,-600.0,0.00026,9]
[329714144,1718597444119,-150.0,0.00026008,2]
[329714145,1718597444134,-150.0,0.00026009,2]
[329714146,1718597444155,-4723.91326157,0.00026011,2]
[329714147,1718597444166,-11956.52838801,0.00026011,2]
[329714148,1718597444472,-314.16320766,0.00026011,2]
[329714149,1718597444486,-1207.14265596,0.00026011,2]
[329714150,1718597444499,-295.82028696,0.00026011,2]
[329714151,1718597444515,-5569.16622518,0.00026011,2]
[329714152,1718597444545,-1011.37129971,0.00026011,2]
[329714153,1718597444629,-444.75014836,0.00026011,2]
[329714154,1718597444645,-727.3743122,0.00026011,2]
[329714155,1718597444724,-573.71899999,0.00026011,2]
[329714156,1718597444745,-841.30346,0.00026011,2]
[329714157,1718597444774,-294.81926732,0.00026011,2]
[329714158,1718597444789,-150.0,0.00026047,2]
[329714159,1718597444801,-152.0,0.00026059,3]
[329714160,1718597444813,-150.0,0.00026071,2]
[329714161,1718597444834,-150.0,0.00026087,2]
[329714162,1718597444868,-900.0,0.000261,9]
[329714163,1718597444885,-151.0,0.00026103,2]
[329714164,1718597444898,-1200.0,0.000262,9]
[329714165,1718597444916,-183.374436,0.00026203,2]
[329714166,1718597444944,-572.643686,0.00026203,2]
[329714167,1718597444988,-863.027366,0.00026203,2]
[329714168,1718597445002,-1678.666419,0.00026203,2]
[329714169,1718597445029,-576.880696,0.00026203,2]
[329714170,1718597445040,-559.555473,0.00026203,2]
[329714171,1718597445081,-151.0,0.00026248,5]
[329714172,1718597445108,-150.0,0.0002626,2]
[329714173,1718597445122,-150.0,0.00026265,2]
[329714174,1718597445153,-536.63421061,0.000263,9]
[329714175,1718597445236,-509.16789362,0.000263,9]
[329714176,1718597445262,-354.451,0.000263,9]
[329714177,1718597445278,-199.74689577,0.000263,9]
[329714178,1718597445294,-150.0,0.00026309,2]
[329714179,1718597445331,-150.0,0.00026322,2]
[329714180,1718597445346,-150.0,0.00026337,2]
[329714181,1718597445357,-150.0,0.00026382,2]
[329714182,1718597445369,-300.0,0.000264,9]
[329714183,1718597445382,-150.0,0.00026405,2]
[329714184,1718597445404,-150.0,0.00026411,2]
[329714185,1718597445454,-179.44022,0.00026416,2]
[329714186,1718597445465,-150.0,0.00026422,2]
[329714187,1718597445481,-150.0,0.00026427,2]
[329714188,1718597445493,-150.0,0.00026428,2]
[329714189,1718597445504,-6681.81413294,0.00026448,2]
[329714190,1718597445518,-218.23529157,0.00026448,2]
[329714191,1718597445533,-318.39,0.00026475,2]
[329714192,1718597445548,-150.0,0.00026492,2]
[329714193,1718597445589,-300.0,0.000265,9]
[329714194,1718597445606,-572.643686,0.00026522,2]
[329714195,1718597445618,-863.027366,0.00026522,2]
[329714196,1718597445644,-1678.666419,0.00026522,2]
[329714197,1718597445656,-576.880696,0.00026522,2]
[329714198,1718597445679,-559.555473,0.00026522,2]
[329714199,1718597445706,-150.0,0.00026534,2]
[329714200,1718597445733,-1173.93581253,0.00026535,2]
[329714201,1718597445747,-5726.11361187,0.00026535,2]
[329714202,1718597445758,-848.58,0.00026548,2]
[329714203,1718597445785,-852.03,0.00026548,2]
[329714204,1718597445808,-603.15,0.00026548,2]
[329714205,1718597445824,-852.03,0.00026548,2]
[329714206,1718597445838,-852.03,0.00026548,2]
[329714207,1718597445853,-852.03,0.00026548,2]
[329714208,1718597445867,-179.29,0.00026548,2]
[329714209,1718597445881,-1642.13,0.00026548,2]
[329714210,1718597445897,-172.40090557,0.00026548,2]
[329714211,1718597445909,-151.0,0.00026548,7]
[329714212,1718597445920,-360.963867,0.00026548,7]
[329714213,1718597445948,-360.963867,0.00026548,7]
[329714214,1718597445964,-154.329413,0.00026548,7]
[329714215,1718597445983,-151.0,0.00026548,7]
[329714216,1718597446012,-430.760245,0.00026548,7]
[329714217,1718597446029,-155.143914,0.00026548,7]
[329714218,1718597446046,-430.760245,0.00026548,7]
[329714219,1718597446058,-152.85908,0.00026548,7]
[329714220,1718597446081,-157.55079,0.00026548,7]
[329714221,1718597446113,-154.303553,0.00026548,7]
[329714222,1718597446177,-154.303553,0.00026548,7]
[329714223,1718597446231,-162.304352,0.00026548,7]
[329714224,1718597446250,-150.0,0.00026555,2]
[329714225,1718597446273,-150.0,0.00026569,2]
[329714226,1718597446304,-1000.0,0.00026585,2]
[329714227,1718597446332,-29999.99,0.00026591,2]
[329714228,1718597446345,-4417.99,0.00026591,2]
[329714229,1718597446357,-14557.83,0.00026591,2]
[329714230,1718597446374,-300.0,0.000266,9]
[329714231,1718597446392,-150.0,0.00026613,2]
[329714232,1718597446428,-6900.0494244,0.00026621,2]
[329714233,1718597446440,-353.95,0.00026685,2]
[329714234,1718597446454,-150.0,0.00026685,2]
[329714235,1718597446473,-423.27,0.00026685,2]
[329714236,1718597446494,-527.15,0.00026685,2]
[329714237,1718597446515,-150.0,0.00026685,2]
[329714238,1718597446546,-164.44,0.00026685,2]
[329714239,1718597446560,-150.0,0.00026685,2]
[329714240,1718597446583,-150.0,0.00026685,2]
[329714241,1718597446595,-423.27,0.00026685,2]
[329714242,1718597446636,-164.44,0.00026685,2]
[329714243,1718597446650,-150.0,0.00026685,2]
[329714244,1718597446672,-353.95,0.00026685,2]
[329714245,1718597446693,-150.0,0.00026685,2]
[329714248,1718597446708,-150.0,0.00026685,2]
[329714249,1718597446723,-423.27,0.00026685,2]
[329714251,1718597446734,-150.0,0.00026685,2]
[329714252,1718597446746,-353.95,0.00026685,2]
[329714255,1718597446775,-150.0,0.00026685,2]
[329714256,1718597446796,-1054.3,0.00026685,2]
[329714257,1718597446809,-164.44,0.00026685,2]
[329714258,1718597446826,-150.0,0.00026685,2]
[329714259,1718597446837,-423.27,0.00026685,2]
[329714260,1718597446868,-150.0,0.00026685,2]
[329714261,1718597446893,-150.0,0.00026685,2]
[329714262,1718597446908,-353.95,0.00026685,2]
[329714263,1718597446925,-150.0,0.00026685,2]
[329714264,1718597446950,-150.0,0.00026685,2]
[329714265,1718597446964,-164.44,0.00026685,2]
[329714266,1718597446983,-527.15,0.00026685,2]
[329714267,1718597447001,-423.27,0.00026685,2]
[329714268,1718597447013,-527.15,0.00026685,2]
[329714269,1718597447040,-150.0,0.00026685,2]
[329714270,1718597447053,-164.44,0.00026685,2]
[329714271,1718597447068,-150.0,0.00026685,2]
[329714272,1718597447086,-353.95,0.00026685,2]
[329714273,1718597447101,-527.15,0.00026685,2]
[329714274,1718597447128,-164.44,0.00026685,2]
[329714275,1718597447140,-300.0,0.00026685,2]
[329714276,1718597447153,-150.0,0.00026685,2]
[329714277,1718597447165,-352.21,0.00026685,2]
[329714278,1718597447182,-150.0,0.00026685,2]
[329714279,1718597447216,-423.27,0.00026685,2]
[329714280,1718597447238,-527.15,0.00026685,2]
[329714281,1718597447251,-423.27,0.00026685,2]
[329714282,1718597447279,-150.0,0.00026685,2]
[329714284,1718597447295,-164.44,0.00026685,2]
[329714285,1718597447324,-257.6463817,0.00026685,2]
[329714286,1718597447341,-96.3036183,0.00026685,2]
[329714287,1718597447354,-150.0,0.00026685,2]
[329714288,1718597447369,-143.24380424,0.00026685,2]
[329714289,1718597447386,-383.90619576,0.00026685,2]
[329714290,1718597447400,-353.95,0.00026685,2]
[329714291,1718597447412,-164.44,0.00026685,2]
[329714292,1718597447424,-423.27,0.00026685,2]
[329714293,1718597447439,-150.0,0.00026685,2]
[329714294,1718597447462,-150.0,0.00026685,2]
[329714295,1718597447478,-150.0,0.00026685,2]
[329714296,1718597447501,-423.27,0.00026685,2]
[329714297,1718597447550,-150.0,0.00026685,2]
[329714298,1718597447563,-164.44,0.00026685,2]
[329714299,1718597447577,-150.0,0.00026685,2]
[329714300,1718597447593,-353.95,0.00026685,2]
[329714301,1718597447607,-527.15,0.00026685,2]
[329714302,1718597447629,-423.27,0.00026685,2]
[329714303,1718597447649,-150.0,0.00026685,2]
[329714305,1718597447660,-150.0,0.00026685,2]
[329714306,1718597447674,-527.15,0.00026685,2]
[329714307,1718597447687,-164.44,0.00026685,2]
[329714308,1718597447700,-353.95,0.00026685,2]
[329714309,1718597447734,-150.0,0.00026685,2]
[329714310,1718597447745,-527.15,0.00026685,2]
[329714311,1718597447757,-164.44,0.00026685,2]
[329714312,1718597447773,-150.0,0.00026685,2]
[329714313,1718597447785,-423.27,0.00026685,2]
[329714314,1718597447796,-353.95,0.00026685,2]
[329714315,1718597447852,-150.0,0.00026685,2]
[329714316,1718597447864,-527.15,0.00026685,2]
[329714317,1718597447876,-423.27,0.00026685,2]
[329714318,1718597447905,-164.44,0.00026685,2]
[329714319,1718597447936,-353.11,0.00026685,2]
[329714320,1718597447951,-150.0,0.00026685,2]
[329714321,1718597447976,-150.0,0.00026685,2]
[329714322,1718597448006,-150.0,0.00026685,2]
[329714323,1718597448025,-150.0,0.00026685,2]
[329714324,1718597448046,-712.51,0.00026685,2]
[329714325,1718597448058,-189.5,0.00026685,2]
[329714326,1718597448082,-519.44,0.00026685,2]
[329714327,1718597448105,-164.44,0.00026685,2]
[329714328,1718597448119,-150.0,0.00026685,2]
[329714329,1718597448138,-846.2,0.00026685,2]
[329714330,1718597448157,-527.15,0.00026685,2]
[329714331,1718597448169,-150.0,0.00026685,2]
[329714332,1718597448182,-707.62,0.00026685,2]
[329714333,1718597448210,-150.0,0.00026685,2]
[329714334,1718597448260,-146.2034606,0.00026685,2]
[329714335,1718597448339,-18.2365394,0.00026685,2]
[329714336,1718597448373,-150.0,0.00026685,2]
[329714337,1718597448417,-527.15,0.00026685,2]
[329714338,1718597448431,-164.44,0.00026685,2]
[329714339,1718597448443,-150.0,0.00026685,2]
[329714340,1718597448475,-526.55,0.00026685,2]
[329714341,1718597448502,-164.44,0.00026685,2]
[329714342,1718597448516,-150.0,0.00026685,2]
[329714343,1718597448527,-150.0,0.00026685,2]
[329714344,1718597448540,-164.44,0.00026685,2]
[329714345,1718597448564,-344.14,0.00026685,2]
[329714346,1718597448576,-150.0,0.00026685,2]
[329714347,1718597448590,-162.14,0.00026685,2]
[329714348,1718597448600,-328.76,0.00026685,2]
[329714349,1718597448612,-167.202144,0.00026685,7]
[329714350,1718597448623,-179.172478,0.00026685,7]
[329714351,1718597448636,-179.172478,0.00026685,7]
[329714352,1718597448648,-151.0,0.00026685,7]
[329714353,1718597448668,-276.549378,0.00026685,7]
[329714354,1718597448682,-746.165889,0.00026685,7]
[329714355,1718597448693,-151.0,0.00026685,7]
[329714356,1718597448708,-746.165889,0.00026685,7]
[329714357,1718597448722,-151.0,0.00026685,7]
[329714358,1718597448736,-151.0,0.00026685,7]
[329714359,1718597448748,-151.0,0.00026685,7]
[329714360,1718597448768,-151.0,0.00026685,7]
[329714361,1718597448786,-885.802782,0.00026685,7]
[329714362,1718597448802,-885.802782,0.00026685,7]
[329714363,1718597448815,-342.897519,0.00026685,7]
[329714364,1718597448836,-151.0,0.00026685,7]
[329714365,1718597448892,-342.897519,0.00026685,7]
[329714366,1718597448907,-177.458691,0.00026685,7]
[329714367,1718597448919,-177.458691,0.00026685,7]
[329714368,1718597448946,-343.774389,0.00026685,7]
[329714369,1718597448961,-343.774389,0.00026685,7]
[329714370,1718597448986,-151.0,0.00026685,7]
[329714371,1718597449014,-151.0,0.00026685,7]
[329714372,1718597449028,-151.0,0.00026685,7]
[329714373,1718597449088,-155.050144,0.00026685,7]
[329714374,1718597449144,-151.0,0.00026685,7]
[329714375,1718597449157,-269.523889,0.00026685,7]
[329714376,1718597449172,-151.0,0.00026685,7]
[329714377,1718597449185,-151.0,0.00026685,7]
[329714378,1718597449212,-151.0,0.00026685,7]
[329714379,1718597449247,-150.0,0.0002669,2]
[329714380,1718597449274,-300.0,0.000267,9]
[329714381,1718597449286,-6900.0494244,0.00026708,2]
[329714382,1718597449310,-150.0,0.00026712,2]
[329714383,1718597449324,-150.0,0.00026754,2]
[329714384,1718597449336,-151.0,0.00026755,5]
[329714385,1718597449349,-384.19074746,0.00026757,2]
[329714386,1718597449362,-384.19074746,0.00026762,2]
[329714387,1718597449377,-384.19074746,0.00026775,2]
[329714388,1718597449395,-384.19074746,0.00026782,2]
[329714389,1718597449409,-6900.0494244,0.00026794,2]
[329714390,1718597449422,-384.19074746,0.00026797,2]
[329714391,1718597449433,-684.0,0.000268,9]
[329714392,1718597449446,-150.0,0.00026813,2]
[329714393,1718597449464,-150.0,0.00026841,2]
[329714394,1718597449494,-180.233809,0.00026842,2]
[329714395,1718597449530,-183.374436,0.00026842,2]
[329714396,1718597449551,-179.44022,0.00026842,2]
[329714397,1718597449594,-572.643686,0.00026842,2]
[329714398,1718597449623,-863.027366,0.00026842,2]
[329714399,1718597449671,-1678.666419,0.00026842,2]
[329714400,1718597449704,-576.880696,0.00026842,2]
[329714401,1718597449718,-559.555473,0.00026842,2]
[329714402,1718597449738,-3198.51205093,0.00026842,2]
[329714403,1718597449753,-150.0,0.00026852,2]
[329714404,1718597449780,-150.0,0.00026869,2]
[329714405,1718597449793,-6900.0494244,0.00026881,2]
[329714406,1718597449828,-3899.00703512,0.00026897,2]
[329714407,1718597449847,-460.69291176,0.000269,2]
[329714408,1718597449890,-150.0,0.00026901,2]
[329714409,1718597449920,-150.0,0.00026924,2]
[329714410,1718597449939,-150.0,0.00026933,2]
[329714411,1718597449950,-150.0,0.00026959,2]
[329714412,1718597449964,-150.0,0.00026959,2]
[329714413,1718597449997,-150.0,0.00026959,2]
[329714414,1718597450010,-150.0,0.00026959,2]
[329714415,1718597450033,-306.15,0.00026959,2]
[329714416,1718597450045,-4640.27445347,0.00026967,2]
[329714489,1718597451621,-1181.68,0.00021574,2]
[329714491,1718597451636,-7160.00000002,0.00021574,2]
[329714500,1718597451775,-1149.50021482,0.00021574,2]
[329714625,1718597453941,-352.54328315,0.00017258,2]
[329714627,1718597453956,-155.0,0.00017259,2]
[329714629,1718597453970,-1974.93831552,0.00021574,2]
[329714631,1718597453991,-1826.3678625,0.00021574,2]
[329714700,1718598633714,-155.0,0.00013088,2]
[329714701,1718598633744,-134.3455407,0.00013089,2]
[329714702,1718598633924,-20.6544593,0.00013089,2]
[329714703,1718598633935,-529.23291916,0.00013089,2]
[329714704,1718598633961,-155.0,0.0001309,2]
[329714705,1718598633984,-3104.08951169,0.00013091,2]
[329714706,1718598633996,-762.21120122,0.00013091,2]
[329714707,1718598634015,-155.0,0.00013091,2]
[329714708,1718598634028,-538.4252942,0.00013092,2]
[329714709,1718598634039,-158.55219684,0.00013092,2]
[329714710,1718598634049,-300.0,0.00013092,2]
[329714711,1718598634060,-155.0,0.00013093,2]
[329714712,1718598634073,-155.0,0.00013093,2]
[329714713,1718598634084,-507.39570669,0.00013093,2]